{"text_format":"1","workbook":"xlsx","n_sheets":1,"sheets":["Approved Running Order"],"not_rendered":{"charts":0,"images":0,"macros":0,"external_links":5,"defined_names":27,"comments":0,"pivot_tables":0},"unopened":[],"bounds":{"document_bytes":16777216,"sheet_cells":100000,"rows_first":2000,"rows_last":500,"rows_between":2000,"halvings":0,"cell_chars":16384,"cell_head_chars":4096},"cells_cut":0,"cells_raw":0,"read":"whole","date_system":"1900"}

{"sheet":"Approved Running Order","index":0,"n_rows":55,"n_cols":20,"rows_kept":55,"cut":false,"hidden":false,"merged":[]}
["Race #","Division","Left Lane","Right Lane","Format",null,"Div","Team","Gap","Race 1","Gap","Race 2","Gap","Race 3","Gap","Race 4","Gap","Race 5","Gap","Race 6"]
[1,2,"Belconnen Dodgeda Bullets","Wooftimus Prime","Non-Handicap",null,1,"Norwest Thunderdogs 1",{"$f":"J2-1","v":2},3,{"$f":"L2-J2","v":8},11,{"$f":"N2-L2","v":16},27,{"$f":"P2-N2","v":5},32,{"$f":"R2-P2","v":5},37,{"$f":"T2-R2","v":8},45]
[2,2,"Norwest Thunderdogs 4","Norwest Thunderdogs 5","Non-Handicap",null,1,"Norwest Thunderdogs 2",10,11,{"$f":"L3-J3","v":6},17,{"$f":"N3-L3","v":5},22,{"$f":"P3-N3","v":5},27,{"$f":"R3-P3","v":10},37,{"$f":"T3-R3","v":13},50]
[3,1,"Canberra X Factor","Norwest Thunderdogs 1","Non-Handicap",null,1,"Canberra X Factor",2,3,14,17,5,22,10,32,13,45,5,50]
[4,3,"Havoc Hounds","Star Trackers","Handicap"]
[5,3,"MAD Dash","Norwest Thunderdogs 6","Handicap",null,2,"Norwest Thunderdogs 4",{"$f":"J6-1","v":1},2,7,9,14,23,10,33,5,38,13,51]
[6,4,"Spud Dogs","Primal Woofers","Handicap",null,2,"Norwest Thunderdogs 5",{"$f":"J7-1","v":1},2,8,10,8,18,15,33,6,39,7,46]
[7,"Open","Flyball Friends","We Opened This","Handicap",null,2,"Wooftimus Prime",0,1,9,10,13,23,5,28,11,39,12,51]
[8,"Open","New Wave","Zoomies","Handicap",null,2,"Belconnen Dodgeda Bullets",{"$f":"J9-1","v":0},1,8,9,9,18,10,28,10,38,8,46]
[9,2,"Belconnen Dodgeda Bullets","Norwest Thunderdogs 4","Non-Handicap"]
[10,2,"Wooftimus Prime","Norwest Thunderdogs 5","Non-Handicap",null,3,"Star Trackers",{"$f":"J11-1","v":3},4,8,12,12,24,5,29,11,40,12,52]
[11,1,"Norwest Thunderdogs 2","Norwest Thunderdogs 1","Non-Handicap",null,3,"Havoc Hounds",{"$f":"J12-1","v":3},4,9,13,7,20,9,29,12,41,6,47]
[12,3,"Star Trackers","Norwest Thunderdogs 6","Handicap",null,3,"MAD Dash",{"$f":"J13-1","v":4},5,8,13,11,24,10,34,7,41,11,52]
[13,3,"Havoc Hounds","MAD Dash","Handicap",null,3,"Norwest Thunderdogs 6",{"$f":"J14-1","v":4},5,7,12,8,20,14,34,6,40,7,47]
[14,4,"Primal Woofers","Tuggeranong Howling Torpedoes","Handicap"]
[15,"Open","Zoomies","Flyball Friends","Handicap",null,4,"Tuggeranong Howling Torpedoes",{"$f":"J16-1","v":13},14,5,19,11,30,5,35,13,48,5,53]
[16,"Open","We Opened This","New Wave","Handicap",null,4,"Primal Woofers",{"$f":"J17-1","v":5},6,8,14,11,25,5,30,12,42,6,48]
[17,1,"Canberra X Factor","Norwest Thunderdogs 2","Non-Handicap",null,4,"Spud Dogs",5,6,13,19,6,25,10,35,7,42,11,53]
[18,2,"Belconnen Dodgeda Bullets","Norwest Thunderdogs 5","Non-Handicap"]
[19,4,"Tuggeranong Howling Torpedoes","Spud Dogs","Handicap",null,"Open","New Wave",{"$f":"J20-1","v":7},8,8,16,10,26,10,36,8,44,10,54]
[20,3,"Havoc Hounds","Norwest Thunderdogs 6","Handicap",null,"Open","Flyball Friends",{"$f":"J21-1","v":6},7,8,15,11,26,5,31,12,43,11,54]
[21,"Open","We Opened This","Zoomies","Handicap",null,"Open","Zoomies",7,8,7,15,6,21,15,36,7,43,6,49]
[22,1,"Norwest Thunderdogs 2","Canberra X Factor","Non-Handicap",null,"Open","We Opened This",{"$f":"J23-1","v":6},7,9,16,5,21,10,31,13,44,5,49]
[23,2,"Norwest Thunderdogs 4","Wooftimus Prime","Non-Handicap"]
[24,3,"MAD Dash","Star Trackers","Handicap"]
[25,4,"Primal Woofers","Spud Dogs","Handicap"]
[26,"Open","New Wave","Flyball Friends","Handicap"]
[27,1,"Norwest Thunderdogs 1","Norwest Thunderdogs 2","Non-Handicap"]
[28,2,"Wooftimus Prime","Belconnen Dodgeda Bullets","Non-Handicap"]
[29,3,"Star Trackers","Havoc Hounds","Handicap"]
[30,4,"Tuggeranong Howling Torpedoes","Primal Woofers","Handicap"]
[31,"Open","We Opened This","Flyball Friends","Handicap"]
[32,1,"Norwest Thunderdogs 1","Canberra X Factor","Non-Handicap"]
[33,2,"Norwest Thunderdogs 5","Norwest Thunderdogs 4","Non-Handicap"]
[34,3,"Norwest Thunderdogs 6","MAD Dash","Handicap"]
[35,4,"Tuggeranong Howling Torpedoes","Spud Dogs","Handicap"]
[36,"Open","Zoomies","New Wave","Handicap"]
[37,1,"Norwest Thunderdogs 2","Norwest Thunderdogs 1","Non-Handicap"]
[38,2,"Norwest Thunderdogs 4","Belconnen Dodgeda Bullets","Non-Handicap"]
[39,2,"Norwest Thunderdogs 5","Wooftimus Prime","Non-Handicap"]
[40,3,"Norwest Thunderdogs 6","Star Trackers","Handicap"]
[41,3,"MAD Dash","Havoc Hounds","Handicap"]
[42,4,"Spud Dogs","Primal Woofers","Handicap"]
[43,"Open","Flyball Friends","Zoomies","Handicap"]
[44,"Open","New Wave","We Opened This","Handicap"]
[45,1,"Norwest Thunderdogs 1","Canberra X Factor","Non-Handicap"]
[46,2,"Norwest Thunderdogs 5","Belconnen Dodgeda Bullets","Non-Handicap"]
[47,3,"Norwest Thunderdogs 6","Havoc Hounds","Handicap"]
[48,4,"Primal Woofers","Tuggeranong Howling Torpedoes","Handicap"]
[49,"Open","Zoomies","We Opened This","Handicap"]
[50,1,"Canberra X Factor","Norwest Thunderdogs 2","Non-Handicap"]
[51,2,"Wooftimus Prime","Norwest Thunderdogs 4","Non-Handicap"]
[52,3,"Star Trackers","MAD Dash","Handicap"]
[53,4,"Spud Dogs","Tuggeranong Howling Torpedoes","Handicap"]
[54,"Open","Flyball Friends","New Wave","Handicap"]